bitfinex-derivatives/quotes_SOLF0:USTF0_20251211
["timestamp","ask_amount","ask_price","bid_price","bid_amount"]
[1765439552608,3.34,130.91,130.88,2.30003298]
[1765439552809,3.34,130.91,130.86,106.9754]
[1765439552810,25.34,130.93,130.9,2.30003298]
[1765439553301,3.34,130.92,130.9,2.30003298]
[1765439553506,3.34,130.92,130.9,2.35521145]
[1765439555102,3.34,130.92,130.9,9.23001145]
[1765439557912,3.34,130.92,130.9,0.05517847]
[1765439564614,3.28,130.9,130.86,6.8768]
[1765439565617,3.28,130.88,130.87,0.0540025]
[1765439567819,3.28,130.88,130.84,6.8776]
[1765439568922,3.28,130.88,130.85,0.05812106]
[1765439573132,3.28,130.87,130.85,0.05812106]
[1765439573324,3.28,130.87,130.85,6.93552106]
[1765439581538,3.33669391,130.89,130.86,2.30003298]
[1765439582940,3.33669391,130.89,130.87,6.8762]
[1765439583142,0.05669391,130.89,130.88,2.30003298]
[1765439583339,25.28,130.93,130.88,2.30003298]
[1765439583637,3.28,130.93,130.9,6.8746]
[1765439584442,3.33203968,130.93,130.9,6.92701819]
[1765439585744,0.05203968,130.93,130.91,6.8741]
[1765439590943,3.48203968,130.93,130.91,6.8741]
[1765439598242,0.05203968,130.93,130.91,6.8741]
[1765439609765,3.30203968,130.93,130.91,6.8741]
[1765439613757,3.30203968,130.93,130.9,0.05241819]
[1765439615771,3.30203968,130.93,130.9,6.92721819]
[1765439622375,3.30203968,130.93,130.9,0.05241819]
[1765439631084,3.30203968,130.93,130.9,6.92721819]
[1765439640496,3.30203968,130.93,130.91,6.8743]
[1765439643799,0.05203968,130.93,130.91,6.8743]
[1765439644704,0.05203968,130.93,130.91,9.17206172]
[1765439645699,0.05203968,130.93,130.91,6.8743]
[1765439645905,3.47203968,130.93,130.91,6.8743]
[1765439646808,0.05203968,130.93,130.91,6.8743]
[1765439649903,3.47203968,130.93,130.91,6.8743]
[1765439650808,3.47203968,130.93,130.9,0.05241819]
[1765439651007,5.7698014,130.93,130.9,0.05241819]
[1765439651208,3.42,130.92,130.9,0.05241819]
[1765439666132,3.42,130.92,130.9,6.92721819]
[1765439670939,3.17203968,130.93,130.91,6.8741]
[1765439690961,0.05203968,130.93,130.91,6.8741]
[1765439702375,3.35203968,130.93,130.91,6.8741]
[1765439702672,0.05203968,130.93,130.91,6.8741]
[1765439704080,0.05203968,130.93,130.92,2.29776172]
[1765439705067,3.3,130.97,130.92,109.21996172]
[1765439705268,3.3,130.97,130.93,64.44]
[1765439705876,3.3,130.97,130.95,6.8721]
[1765439706077,3.3,130.97,130.95,6.92688622]
[1765439706078,3.35072919,130.97,130.95,6.92688622]
[1765439706369,0.05072919,130.97,130.95,6.92688622]
[1765439708970,0.05072919,130.97,130.96,64.44]
[1765439721781,0.05072919,130.97,130.96,68.0287553]
[1765439723280,0.05072919,130.97,130.96,64.44]
[1765439723686,3.30072919,130.97,130.95,0.05478622]
[1765439726591,3.25,130.95,130.92,64.42]
[1765439727497,3.25,130.95,130.92,64.47201222]
[1765439730600,3.25,130.95,130.92,0.05201222]
[1765439747606,3.37,130.93,130.83,22.65936221]
[1765439747806,3.37,130.91,130.84,106.9882]
[1765439748004,3.37,130.91,130.86,106.9737]
[1765439748207,3.37,130.91,130.87,3.5887553]
[1765439748409,3.37,130.91,130.88,6.8757]
[1765439748609,3.42390179,130.91,130.88,6.92959472]
[1765439748909,3.42390179,130.91,130.88,0.05389472]
[1765439753917,10.29850179,130.91,130.88,0.05389472]
[1765439754216,3.37,130.9,130.88,0.05389472]
[1765439754420,3.37,130.9,130.84,10.4664553]
[1765439754421,3.37,130.9,130.84,6.8777]
[1765439755433,3.42343465,130.88,130.86,0.05326047]
[1765439768047,106.8863,130.97,130.87,110.5560553]
[1765439768341,110.4750553,130.97,130.87,110.5560553]
[1765439768743,2.29828544,130.96,130.89,2.29828544]
[1765439768949,0.0574672,130.94,130.91,0.05468112]
[1765439769946,3.32,130.93,130.91,0.05468112]
[1765439771048,3.32,130.93,130.92,2.29828544]
[1765439772851,3.32,130.93,130.91,0.05468112]
[1765439774852,3.33,130.92,130.91,0.05468112]
[1765439775352,3.33,130.92,130.88,6.8756]
[1765439775652,3.33,130.91,130.89,2.29828544]
[1765439776557,3.38510107,130.91,130.89,2.35334085]
[1765439781751,10.25960107,130.91,130.89,0.05505541]
[1765439781950,3.33,130.9,130.87,2.29828544]
[1765439782349,3.33,130.9,130.86,2.29828544]
[1765439782954,3.33,130.88,130.82,6.8789]
[1765439783152,3.33,130.88,130.84,2.29828544]
[1765439783347,5.62828544,130.88,130.84,2.29828544]
[1765439783548,3.33,130.87,130.84,2.29828544]
[1765439783956,3.38797642,130.87,130.84,2.34982166]
[1765439788352,3.38797642,130.87,130.86,2.29828544]
[1765439788554,0.05797642,130.87,130.86,2.29828544]
[1765439804070,3.33,130.91,130.86,109.27168544]
[1765439804278,3.41,130.94,130.9,2.29828544]
[1765439804479,3.41,130.94,130.87,106.9673]
[1765439804674,3.41,130.92,130.88,2.29828544]
[1765439805076,0.05683578,130.91,130.89,0.05664245]
[1765439805375,3.41,130.9,130.89,0.05664245]
[1765439812481,0.05683578,130.91,130.89,0.05664245]
[1765439812782,3.46683578,130.91,130.9,2.29828544]
[1765439817988,3.46683578,130.91,130.89,2.35492789]
[1765439818688,0.05683578,130.91,130.89,9.23002789]
[1765439818979,3.46683578,130.91,130.89,9.23002789]
[1765439822282,0.05683578,130.91,130.89,9.23002789]
[1765439822881,3.41,130.95,130.91,6.8743]
[1765439823180,3.41,130.95,130.91,9.17258544]
[1765439823875,3.4611968,130.94,130.92,0.04858998]
[1765439834001,3.4611968,130.94,130.92,6.92228998]
[1765439835299,0.0511968,130.94,130.92,6.92228998]
[1765439835489,0.0511968,130.94,130.92,71.46228998]
[1765439840807,0.0511968,130.94,130.92,75.05281394]
[1765439841009,3.21,130.98,130.95,6.8722]
[1765439842011,3.26760029,130.98,130.95,6.92636545]
[1765439844210,3.26760029,130.98,130.95,71.46636545]
[1765439845007,3.26760029,130.98,130.96,6.8714]
[1765439853429,0.05760029,130.98,130.96,6.8714]
[1765439855330,3.26760029,130.98,130.96,6.8714]
[1765439858233,0.05760029,130.98,130.96,6.8714]
[1765439862637,3.26760029,130.98,130.96,6.8714]
[1765439862931,3.26760029,130.98,130.95,64.59416545]
[1765439866736,0.05760029,130.98,130.96,6.8716]
[1765439867339,3.26760029,130.98,130.96,6.8716]
[1765439872645,0.05760029,130.98,130.96,6.8716]
[1765439887756,3.16760029,130.98,130.95,0.05416545]
[1765439887951,3.11,130.97,130.95,0.05416545]
[1765439888158,3.11,130.95,130.9,6.8748]
[1765439888363,3.11,130.95,130.9,71.4148]
[1765439888951,3.11,130.93,130.9,71.4148]
[1765439889153,3.11,130.93,130.91,0.04909345]
[1765439890861,3.11,130.92,130.91,0.04909345]
[1765439892565,3.21,130.91,130.86,6.8767]
[1765439892866,3.21,130.89,130.86,6.8767]
[1765439893270,3.21,130.91,130.87,71.4161]
[1765439893563,0.05684866,130.9,130.88,0.05551555]
[1765439893765,0.05684866,130.9,130.88,2.35455136]
[1765439894565,3.26684866,130.9,130.88,2.35455136]
[1765439905478,3.26684866,130.9,130.88,0.05551555]
[1765439905672,3.26684866,130.9,130.88,2.35455136]
[1765439908974,3.26684866,130.9,130.88,0.05551555]
[1765439910392,3.26684866,130.9,130.88,6.93131555]
[1765439926514,0.05684866,130.9,130.88,9.23035136]
[1765439926813,3.31684866,130.9,130.88,9.23035136]
[1765439928811,3.31684866,130.9,130.88,2.35455136]
[1765439930021,3.31684866,130.9,130.88,0.05551555]
[1765439944828,5.61588447,130.9,130.88,0.05551555]
[1765439945022,3.32,130.89,130.88,0.05551555]
[1765439960341,0.05684866,130.9,130.88,0.05551555]
[1765439961447,3.43684866,130.9,130.88,0.05551555]
[1765439961948,3.43684866,130.9,130.88,6.93131555]
[1765439962641,0.05684866,130.9,130.88,10.52478593]
[1765439962944,0.05684866,130.9,130.89,64.62]
[1765439970638,3.38,130.93,130.89,64.62]
[1765439970843,3.38,130.97,130.9,110.53627038]
[1765439971340,3.38,130.97,130.93,6.8732]
[1765439971541,3.38,130.97,130.94,64.6]
[1765439971749,3.43671158,130.97,130.94,64.65407751]
[1765439987065,3.12,130.95,130.94,0.05407751]
[1765440004173,3.12,130.95,130.83,106.9954]
[1765440004174,3.12,130.94,130.86,18.97454169]
[1765440004378,3.12,130.94,130.85,18.97454169]
[1765440004677,3.4,130.91,130.84,90.45224169]
[1765440004978,3.4,130.9,130.84,64.6]
[1765440005279,3.4,130.87,130.86,0.05126773]
[1765440005981,3.4,130.87,130.8,6.8798]
[1765440006975,3.4,130.84,130.82,0.05339349]
[1765440008971,3.4,130.84,130.76,6.882]
[1765440009975,3.4,130.83,130.79,0.02725118]
[1765440010270,3.4,130.8,130.79,0.02725118]
[1765440012582,3.4,130.8,130.74,71.503]
[1765440013384,3.4,130.8,130.74,64.62]
[1765440013691,3.4,130.77,130.72,6.8842]
[1765440013983,3.4,130.77,130.71,6.8844]
[1765440014187,0.05256976,130.75,130.71,107.0981]
[1765440015578,0.05256976,130.75,130.72,107.0869]
[1765440015985,0.05256976,130.75,130.73,107.0813]
[1765440016179,0.05256976,130.75,130.73,113.9647]
[1765440016984,3.4,130.79,130.75,6.8825]
[1765440017184,3.21,130.83,130.76,64.66]
[1765440017386,3.21,130.83,130.76,171.7176]
[1765440017585,3.21,130.83,130.77,6.8814]
[1765440017984,0.0511453,130.81,130.79,0.04833184]
[1765440021193,3.2611453,130.81,130.79,0.04833184]
[1765440041512,3.2611453,130.81,130.79,0.04833184]
[1765440044707,0.0511453,130.81,130.79,0.04833184]
[1765440045917,0.0511453,130.81,130.79,6.92883184]
[1765440047616,0.0511453,130.81,130.79,8.44883184]
[1765440048817,0.0511453,130.81,130.8,64.68]
[1765440051226,3.4411453,130.81,130.8,64.68]
[1765440051926,0.0511453,130.81,130.8,64.68]
[1765440052132,3.4411453,130.81,130.8,64.68]
[1765440058735,3.4411453,130.81,130.79,0.04833184]
[1765440063633,3.39,130.8,130.77,64.68]
[1765440063936,3.39,130.8,130.74,6.8829]
[1765440064830,3.3,130.77,130.74,6.8829]
[1765440065134,3.3,130.77,130.73,64.7]
[1765440065737,3.3,130.77,130.74,6.8831]
[1765440070230,3.3,130.77,130.72,107.0877]
[1765440070231,3.3,130.77,130.72,6.8841]
[1765440071122,10.1818,130.77,130.72,6.8841]
[1765440071329,3.3,130.76,130.72,6.8841]
[1765440071630,3.3,130.74,130.72,6.8841]
[1765440072233,3.3,130.74,130.7,71.585]
[1765440072933,3.3,130.74,130.71,6.8847]
[1765440080146,3.3,130.74,130.7,64.7]
[1765440080845,3.3,130.74,130.69,6.8855]
[1765440082033,3.27,130.73,130.69,6.8855]
[1765440082247,3.27,130.71,130.69,6.8855]
[1765440082746,0.05560275,130.72,130.69,6.8855]
[1765440082951,0.05560275,130.72,130.7,171.8454]
[1765440085256,3.32560275,130.72,130.7,64.74]
[1765440085750,0.05560275,130.72,130.7,64.74]
[1765440092357,3.32560275,130.72,130.7,64.74]
[1765440095448,0.05560275,130.72,130.7,64.74]
[1765440102358,3.18560275,130.72,130.7,64.74]
[1765440105556,3.18560275,130.72,130.67,6.8866]
[1765440105761,3.18560275,130.72,130.68,64.74]
[1765440106954,3.18560275,130.72,130.67,71.6266]
[1765440112766,10.07030275,130.72,130.67,71.6266]
[1765440112953,3.13,130.71,130.67,64.74]
[1765440113858,10.015,130.71,130.67,64.74]
[1765440114058,3.13,130.7,130.67,64.74]
[1765440119970,3.13,130.69,130.63,107.16]
[1765440120162,0.05146886,130.67,130.63,171.92]
[1765440120362,0.05146886,130.67,130.65,6.8879]
[1765440121372,3.13,130.73,130.69,6.8858]
[1765440122262,3.18255482,130.72,130.7,0.04914415]
[1765440123966,0.05255482,130.72,130.7,6.93444415]
[1765440124365,3.43255482,130.72,130.7,6.93444415]
[1765440126773,0.05255482,130.72,130.7,6.93444415]
[1765440129970,0.05255482,130.72,130.7,0.04914415]
[1765440130473,3.43255482,130.72,130.7,0.04914415]
[1765440135576,0.05255482,130.72,130.7,0.04914415]
[1765440136981,0.05255482,130.72,130.7,6.93444415]
[1765440139987,3.19255482,130.72,130.7,6.93444415]
[1765440140981,0.05255482,130.72,130.7,6.93444415]
[1765440141502,3.19255482,130.72,130.7,0.04914415]
[1765440146590,0.05255482,130.72,130.7,0.04914415]
[1765440146990,3.19255482,130.72,130.7,0.04914415]
[1765440147197,0.05255482,130.72,130.7,6.93424415]
[1765440147493,0.05255482,130.72,130.7,71.69424415]
[1765440149384,3.14,130.76,130.73,6.8837]
[1765440149585,3.14,130.77,130.73,6.8837]
[1765440149786,3.14,130.77,130.71,107.0953]
[1765440150293,22.0,130.78,130.72,107.0895]
[1765440150485,0.05652802,130.76,130.74,0.04869226]
[1765440150791,0.05652802,130.76,130.75,6.8826]
[1765440155389,0.05652802,130.76,130.74,64.80869226]
[1765440155390,25.45,130.81,130.76,6.882]
[1765440155591,3.45,130.8,130.76,6.882]
[1765440156391,3.50811196,130.79,130.77,0.05290243]
[1765440156994,0.05811196,130.79,130.77,6.93440243]
[1765440157393,0.05811196,130.79,130.77,71.69440243]
[1765440157992,3.45,130.83,130.77,171.85500243]
[1765440158198,3.45,130.82,130.77,64.81290243]
[1765440158492,3.45,130.82,130.77,0.05290243]
[1765440158895,3.45,130.82,130.78,6.881]
[1765440159099,3.50843987,130.81,130.78,6.881]
[1765440159308,3.50843987,130.81,130.77,107.09970243]
[1765440159500,0.05843987,130.81,130.79,6.8804]
[1765440159694,0.05843987,130.81,130.79,71.6204]
[1765440160106,3.45,130.84,130.81,6.8794]
[1765440160498,3.45,130.86,130.8,107.0244]
[1765440160902,3.45,130.86,130.82,6.8788]
[1765440161102,3.50236326,130.85,130.83,0.05461953]
[1765440161498,0.05236326,130.85,130.83,6.93281953]
[1765440161706,3.45,130.95,130.85,106.9824]
[1765440161992,3.45,130.93,130.87,106.9676]
[1765440162593,0.05168413,130.91,130.89,6.92340774]
[1765440162797,3.50168413,130.91,130.89,6.92340774]
[1765440162994,0.05168413,130.91,130.89,6.92340774]
[1765440163509,0.05168413,130.91,130.89,178.61450774]
[1765440164809,3.45,130.99,130.93,6.8733]
[1765440165008,3.45,130.99,130.93,106.918]
[1765440165606,3.45,130.99,130.92,171.6436]
[1765440165802,3.45,130.96,130.94,0.05524535]
[1765440166711,25.45,130.95,130.94,0.05524535]
[1765440167007,3.45,130.94,130.89,171.6711]
[1765440167212,3.45,130.94,130.89,6.8752]
[1765440167912,3.45,130.92,130.9,0.05405741]
[1765440171911,3.45,130.92,130.86,106.9701]
[1765440171912,3.45,130.92,130.87,6.8762]
[1765440172512,3.45,130.91,130.82,107.0059]
[1765440172709,3.45,130.91,130.82,171.7059]
[1765440173015,3.45,130.87,130.85,0.05702231]
[1765440175817,0.05651298,130.88,130.85,0.05702231]
[1765440176003,3.50651298,130.88,130.85,0.05702231]
[1765440176506,0.05651298,130.88,130.86,6.8767]
[1765440176704,0.05651298,130.88,130.86,113.8519]
[1765440177118,0.05651298,130.88,130.86,6.8767]
[1765440178810,0.05651298,130.88,130.86,113.8524]
[1765440179725,0.05651298,130.88,130.86,6.8767]
[1765440182218,3.50651298,130.88,130.85,64.75702231]
[1765440182419,3.50651298,130.88,130.85,0.05702231]
[1765440183718,22.0,130.87,130.85,0.05702231]
[1765440183910,3.45,130.86,130.85,0.05702231]
[1765440184611,3.45,130.86,130.8,6.8798]
[1765440185611,3.20597249,130.84,130.82,0.05725648]
[1765440187918,0.05597249,130.84,130.82,0.05725648]
[1765440188120,3.15,130.93,130.84,106.9903]
[1765440189019,3.15,130.91,130.87,0.05772412]
[1765440189225,3.15,130.89,130.87,0.05772412]
[1765440190424,3.15,130.89,130.87,6.93402412]
[1765440191011,0.04944848,130.9,130.87,6.93402412]
[1765440191325,3.19944848,130.9,130.87,6.93402412]
[1765440193217,3.19944848,130.9,130.88,6.8758]
[1765440193218,0.04944848,130.9,130.88,6.8758]
[1765440195732,3.22944848,130.9,130.87,0.05772412]
[1765440202522,3.18,130.88,130.87,0.05772412]
[1765440203430,22.0,130.89,130.87,6.93402412]
[1765440203633,25.18,130.89,130.87,6.93402412]
[1765440205133,22.0,130.89,130.87,6.93402412]
[1765440206133,0.04944848,130.9,130.88,6.8756]
[1765440212539,3.22944848,130.9,130.88,6.8756]
[1765440213135,3.22944848,130.9,130.82,107.0044]
[1765440213336,3.18,130.9,130.81,107.0118]
[1765440213743,3.18,130.88,130.83,6.8782]
[1765440213936,3.18,130.88,130.8,171.7188]
[1765440214133,3.18,130.84,130.83,0.05028066]
[1765440215542,3.36850312,130.85,130.83,0.05028066]
[1765440223649,0.05850312,130.85,130.83,6.92868066]
[1765440225648,3.36850312,130.85,130.83,6.92868066]
[1765440228247,0.05850312,130.85,130.83,6.92868066]
[1765440229144,3.36850312,130.85,130.83,6.92868066]
[1765440230251,0.05850312,130.85,130.83,6.92868066]
[1765440231152,3.31,130.89,130.86,6.8769]
[1765440232145,3.36112587,130.89,130.86,6.93243899]
[1765440240055,3.36112587,130.89,130.86,0.05553899]
[1765440240747,10.23662587,130.89,130.86,0.05553899]
[1765440240951,3.31,130.88,130.86,0.05553899]
[1765440246264,3.33,130.87,130.82,6.8789]
[1765440246465,3.33,130.86,130.82,6.8789]
[1765440247260,0.05706828,130.85,130.83,6.93380872]
[1765440248267,3.38706828,130.85,130.83,6.93380872]
[1765440251764,3.38706828,130.85,130.77,107.0441]
[1765440251970,3.33,130.83,130.77,107.0441]
[1765440252955,0.05866659,130.81,130.79,6.93731496]
[1765440255774,0.05866659,130.81,130.79,71.65731496]
[1765440255971,25.19,130.87,130.83,6.8783]
[1765440256173,3.19,130.86,130.83,6.8783]
[1765440256673,3.19,130.86,130.81,6.8792]
[1765440257073,3.19,130.84,130.82,0.04873509]
[1765440257771,3.24795898,130.85,130.82,6.92773509]
[1765440259775,0.05795898,130.85,130.83,6.8785]
[1765440261684,25.19,130.9,130.86,6.8768]
[1765440261874,3.19,130.92,130.86,106.9759]
[1765440262079,3.19,130.92,130.87,106.9671]
[1765440262280,3.19,130.92,130.89,6.8752]
[1765440262582,3.19,130.95,130.89,106.9487]
[1765440262881,0.05230388,130.92,130.9,113.8168]
[1765440263390,0.05230388,130.92,130.9,6.8746]
[1765440267596,3.24230388,130.92,130.89,0.04853254]
[1765440273094,3.19,130.9,130.89,0.04853254]
[1765440279395,3.19,130.9,130.86,6.8767]
[1765440279702,3.19,130.9,130.84,6.8777]
[1765440279899,3.36,130.88,130.84,6.8777]
[1765440280496,0.05833275,130.87,130.85,6.92972772]
[1765440285702,0.05833275,130.87,130.85,71.64972772]
[1765440287120,3.36,130.91,130.87,6.876]
[1765440287910,25.36,130.92,130.87,6.876]
[1765440288206,3.41031337,130.91,130.88,0.05321001]
[1765440291006,3.36,130.9,130.88,0.05321001]
[1765440291598,3.36,130.89,130.88,0.05321001]
[1765440293008,3.36,130.89,130.84,71.5977]
[1765440293604,3.36,130.89,130.84,64.72]
[1765440294009,3.36,130.87,130.85,0.05324866]
[1765440294910,3.36,130.87,130.85,6.93064866]
[1765440299519,0.05203147,130.88,130.86,6.8768]
[1765440299819,3.41203147,130.88,130.86,6.8768]
[1765440301320,3.41203147,130.88,130.85,0.05324866]
[1765440301823,0.05203147,130.88,130.86,6.8768]
[1765440303214,3.41203147,130.88,130.86,6.8768]
[1765440303620,3.41203147,130.88,130.85,0.05324866]
[1765440304215,3.41203147,130.88,130.85,6.93064866]
[1765440305129,3.41203147,130.88,130.85,0.05324866]
[1765440306922,0.05203147,130.88,130.85,0.05324866]
[1765440308325,0.05203147,130.88,130.86,6.8769]
[1765440309221,3.43203147,130.88,130.86,6.8769]
[1765440313829,3.43203147,130.88,130.85,0.05324866]
[1765440315421,0.05203147,130.88,130.86,6.8769]
[1765440315821,3.31203147,130.88,130.86,6.8769]
[1765440316021,0.05203147,130.88,130.86,6.8769]
[1765440320924,3.31203147,130.88,130.86,6.8769]
[1765440322736,0.05203147,130.88,130.86,6.8769]
[1765440322939,0.05203147,130.88,130.87,64.72]
[1765440325732,3.26,130.94,130.89,106.9509]
[1765440326537,0.05466964,130.93,130.9,0.0489341]
[1765440326936,0.05466964,130.93,130.91,6.8742]
[1765440327636,3.31466964,130.93,130.91,6.8742]
[1765440331737,0.05466964,130.93,130.91,6.8742]
[1765440336342,3.38,131.0,130.94,106.9099]
[1765440336546,3.38,131.0,130.95,64.72]
[1765440337343,3.43542922,130.99,130.96,0.05287143]
[1765440337945,3.38,130.98,130.96,0.05287143]
[1765440342049,3.38,130.97,130.96,0.05287143]
[1765440343249,3.38,130.97,130.92,64.7]
[1765440344245,3.38,130.95,130.93,0.05640202]
[1765440344844,25.38,130.94,130.93,0.05640202]
[1765440347948,3.38,130.95,130.93,0.05640202]
[1765440348856,0.05380687,130.96,130.93,0.05640202]
[1765440350359,0.05380687,130.96,130.94,6.8726]
[1765440361452,25.38,131.0,130.93,171.67100202]
[1765440361660,3.38,131.01,130.98,6.8704]
[1765440362765,3.43493475,131.01,130.98,6.92196325]
[1765440365162,3.43493475,131.01,130.98,0.05156325]
[1765440369074,3.43493475,131.01,130.98,6.92216325]
[1765440370769,3.22493475,131.01,130.98,6.92216325]
[1765440371073,0.05493475,131.01,130.99,6.87]
[1765440372770,3.35493475,131.01,130.99,6.87]
[1765440373071,3.35493475,131.01,130.98,0.05156325]
[1765440373866,3.35493475,131.01,130.98,6.92206325]
[1765440374065,3.35493475,131.01,130.98,0.05156325]
[1765440374465,10.22423475,131.01,130.98,0.05156325]
[1765440374665,3.3,131.0,130.98,0.05156325]
[1765440375664,25.35493475,131.01,130.98,0.05156325]
[1765440375865,3.35493475,131.01,130.98,0.05156325]
[1765440376059,0.05493475,131.01,130.98,0.05156325]
[1765440376671,0.05493475,131.01,130.99,6.87]
[1765440378371,3.35493475,131.01,130.98,0.05156325]
[1765440379575,3.35493475,131.01,130.98,6.92216325]
[1765440380674,3.35493475,131.01,130.99,6.87]
[1765440385397,0.05493475,131.01,130.99,6.87]
[1765440386383,3.35493475,131.01,130.99,6.87]
[1765440388779,0.05493475,131.01,130.99,6.87]
[1765440389688,3.35493475,131.01,130.99,6.87]
[1765440390084,3.35493475,131.01,130.98,0.05156325]
[1765440391686,3.35493475,131.01,130.98,6.92176325]
[1765440392386,0.05493475,131.01,130.99,6.87]
[1765440394175,0.05493475,131.01,130.99,71.55]
[1765440394386,22.0,131.04,131.03,6.8681]
[1765440394587,3.3,131.05,131.03,6.8681]
[1765440395389,3.35197292,131.05,131.03,6.92196555]
[1765440396686,3.35197292,131.05,131.03,0.05386555]
[1765440398476,25.35197292,131.05,131.03,0.05386555]
[1765440398688,3.41,131.04,131.03,0.05386555]
[1765440403190,25.46197292,131.05,131.03,0.05386555]
[1765440403390,3.46197292,131.05,131.03,0.05386555]
[1765440408494,3.46197292,131.05,131.03,6.92176555]
[1765440412198,3.46197292,131.05,131.03,0.05386555]
[1765440415894,3.41,131.03,130.98,106.8766]
[1765440416290,3.41,131.03,130.99,106.8683]
[1765440416495,3.41,131.07,131.02,6.8684]
[1765440416896,3.41,131.05,131.03,0.05376825]
[1765440419698,3.41,131.04,131.03,0.00376825]
[1765440419898,3.41,131.04,130.99,71.5298]
[1765440420810,3.41,131.02,131.0,0.05800512]
[1765440423510,3.45857165,131.03,131.0,0.05800512]
[1765440425312,3.45857165,131.03,131.0,6.92740512]
[1765440426015,3.45857165,131.03,131.01,6.869]
[1765440432499,3.45857165,131.03,131.0,0.05800512]
[1765440434005,3.42,131.01,131.0,0.05800512]
[1765440434709,3.42,131.01,130.96,71.5314]
[1765440435524,3.42,130.99,130.97,0.05305358]
[1765440438823,3.42,130.98,130.92,6.8734]
[1765440439607,3.42,130.98,130.94,0.05582236]
[1765440439813,3.42,130.95,130.94,0.05582236]
[1765440446624,3.42,130.95,130.88,64.68]
[1765440446830,3.42,130.94,130.89,106.9503]
[1765440447123,3.42,130.94,130.92,6.8735]
[1765440447623,3.47545055,130.94,130.92,6.92347208]
[1765440448322,0.05545055,130.94,130.92,6.92347208]
[1765440452629,0.05545055,130.94,130.92,71.62347208]
[1765440458936,3.42,130.97,130.94,6.8724]
[1765440460137,3.47669597,130.97,130.94,6.8724]
[1765440461236,3.47669597,130.97,130.92,71.62347208]
[1765440461434,3.47669597,130.97,130.92,0.04997208]
[1765440461639,3.24,130.95,130.92,0.04997208]
[1765440468942,25.24,130.95,130.92,0.04997208]
[1765440469143,3.24,130.94,130.92,0.04997208]
[1765440469343,3.28960415,130.94,130.92,0.04997208]
[1765440484758,3.28960415,130.94,130.92,6.92347208]
[1765440484958,0.04960415,130.94,130.92,6.92347208]
[1765440489855,0.04960415,130.94,130.92,71.64347208]
[1765440494455,3.36,130.98,130.96,6.8715]
[1765440494456,3.16,130.98,130.96,6.8715]
[1765440495372,3.21719522,130.98,130.96,6.92636371]
[1765440497871,0.05719522,130.98,130.96,6.92636371]
[1765440498572,3.21719522,130.98,130.96,6.92636371]
[1765440500574,0.05719522,130.98,130.96,6.92636371]
[1765440501270,3.21719522,130.98,130.96,6.92636371]
[1765440502376,3.21719522,130.98,130.96,0.05486371]
[1765440507881,3.21719522,130.98,130.93,6.8729]
[1765440508583,3.16,130.97,130.91,6.8739]
[1765440508975,3.16,130.94,130.93,0.05681775]
[1765440509973,3.16,130.94,130.91,6.8739]
[1765440510375,3.16,130.94,130.9,64.7]
[1765440510981,3.16,130.94,130.91,0.05102466]
[1765440517284,25.16,130.94,130.91,0.05102466]
[1765440517583,3.44,130.93,130.91,0.05102466]
[1765440522486,3.44,130.93,130.86,71.5967]
[1765440522686,3.44,130.91,130.86,71.5967]
[1765440523581,3.44,130.89,130.87,0.04949154]
[1765440524892,3.44,130.87,130.82,6.8787]
[1765440525885,3.44,130.85,130.82,6.8787]
[1765440526592,0.0568711,130.86,130.82,107.007]
[1765440527887,3.4968711,130.86,130.82,6.8787]
[1765440528593,0.0568711,130.86,130.82,107.0067]
[1765440529893,0.0568711,130.86,130.84,6.8778]
[1765440536594,3.44,130.89,130.85,64.76]
[1765440537493,0.04970848,130.88,130.86,0.04992544]
[1765440537896,0.04970848,130.88,130.87,6.8763]
[1765440538198,3.48970848,130.88,130.87,6.8763]
[1765440538894,3.48970848,130.88,130.86,0.04992544]
[1765440540496,3.48970848,130.88,130.82,107.0084]